{"text_format":"3","workbook":"xlsx","n_sheets":1,"sheets":["Metų tabelis"],"not_rendered":{"defined_names":2},"read":"whole","date_system":"1900"}

{"sheet":"Metų tabelis","index":0,"n_rows":140,"n_cols":12,"rows_kept":140,"merged":[[0,1,1,11],[2,6,2,7],[2,8,2,9],[5,1,5,11],[39,1,39,11],[73,1,73,11],[107,1,107,11]]}
[null,"Darbuotojo tabelis"]
[]
[null,"Darbuotojo vardas:",null,"El. pašto adresas:",null,null,"Metų iki šios dienos bendra suma:"]
[null,"Vadovas:",null,"Telefonas:",null,null,"Įprastos val.:",{"$f":"SUM(C16,C27,C38,C50,C61,C72,C84,C95,C106,C118,C129,C140)","v":0},"Viršvalandžiai:",{"$f":"SUM(F16,F27,F38,F50,F61,F72,F84,F95,F106,F118,F129,F140)","v":0},"Bendroji suma:",{"$f":"SUM(H4:J4)","v":0}]
[]
[null,"Sausis, vasaris, kovas      Darbuotojo tabelis: Per dieną, per savaitę, per mėnesį, per metus"]
[null,"Sausis","1 savaitė","Viršvalandžiai","2 savaitė","Viršvalandžiai ","3 savaitė","Viršvalandžiai  ","4 savaitė","Viršvalandžiai   ","5 savaitė","Viršvalandžiai    "]
[null,"Pirmadienis"]
[null,"Antradienis"]
[null,"Trečiadienis"]
[null,"Ketvirtadienis"]
[null,"Penktadienis"]
[null,"Šeštadienis"]
[null,"Sekmadienis"]
[null,"Iš viso valandų per savaitę",{"$f":"SUBTOTAL(109,Sausis[1 savaitė])","v":0},{"$f":"SUBTOTAL(109,Sausis[Viršvalandžiai])","v":0},{"$f":"SUBTOTAL(109,Sausis[2 savaitė])","v":0},{"$f":"SUBTOTAL(109,Sausis[[Viršvalandžiai ]])","v":0},{"$f":"SUBTOTAL(109,Sausis[3 savaitė])","v":0},{"$f":"SUBTOTAL(109,Sausis[[Viršvalandžiai  ]])","v":0},{"$f":"SUBTOTAL(109,Sausis[4 savaitė])","v":0},{"$f":"SUBTOTAL(109,Sausis[[Viršvalandžiai   ]])","v":0},{"$f":"SUBTOTAL(109,Sausis[5 savaitė])","v":0},{"$f":"SUBTOTAL(109,Sausis[[Viršvalandžiai    ]])","v":0}]
[null,"Saus. bendras: Įprastos valandos",{"$f":"SUM(Sausis[[#Totals],[1 savaitė]],Sausis[[#Totals],[2 savaitė]],Sausis[[#Totals],[3 savaitė]],Sausis[[#Totals],[4 savaitė]],Sausis[[#Totals],[5 savaitė]])","v":0},"Saus. bendras: Viršvalandžiai",null,{"$f":"SUM(Sausis[[#Totals],[Viršvalandžiai]],Sausis[[#Totals],[Viršvalandžiai ]],Sausis[[#Totals],[Viršvalandžiai  ]],Sausis[[#Totals],[Viršvalandžiai   ]],Sausis[[#Totals],[Viršvalandžiai    ]])","v":0}]
[]
[null,"Vasaris","1 savaitė","Viršvalandžiai","2 savaitė","Viršvalandžiai ","3 savaitė","Viršvalandžiai  ","4 savaitė","Viršvalandžiai   ","5 savaitė","Viršvalandžiai    "]
[null,"Pirmadienis"]
[null,"Antradienis"]
[null,"Trečiadienis"]
[null,"Ketvirtadienis"]
[null,"Penktadienis"]
[null,"Šeštadienis"]
[null,"Sekmadienis"]
[null,"Iš viso valandų per savaitę",{"$f":"SUBTOTAL(109,Vasaris[1 savaitė])","v":0},{"$f":"SUBTOTAL(109,Vasaris[Viršvalandžiai])","v":0},{"$f":"SUBTOTAL(109,Vasaris[2 savaitė])","v":0},{"$f":"SUBTOTAL(109,Vasaris[[Viršvalandžiai ]])","v":0},{"$f":"SUBTOTAL(109,Vasaris[3 savaitė])","v":0},{"$f":"SUBTOTAL(109,Vasaris[[Viršvalandžiai  ]])","v":0},{"$f":"SUBTOTAL(109,Vasaris[4 savaitė])","v":0},{"$f":"SUBTOTAL(109,Vasaris[[Viršvalandžiai   ]])","v":0},{"$f":"SUBTOTAL(109,Vasaris[5 savaitė])","v":0},{"$f":"SUBTOTAL(109,Vasaris[[Viršvalandžiai    ]])","v":0}]
[null,"Vas. bendras: Įprastos valandos",{"$f":"SUM(Vasaris[[#Totals],[1 savaitė]],Vasaris[[#Totals],[2 savaitė]],Vasaris[[#Totals],[3 savaitė]],Vasaris[[#Totals],[4 savaitė]],Vasaris[[#Totals],[5 savaitė]])","v":0},"Vas. bendras: Viršvalandžiai",null,{"$f":"SUM(Vasaris[[#Totals],[Viršvalandžiai]],Vasaris[[#Totals],[Viršvalandžiai ]],Vasaris[[#Totals],[Viršvalandžiai  ]],Vasaris[[#Totals],[Viršvalandžiai   ]],Vasaris[[#Totals],[Viršvalandžiai    ]])","v":0}]
[]
[null,"Kovas","1 savaitė","Viršvalandžiai","2 savaitė","Viršvalandžiai ","3 savaitė","Viršvalandžiai  ","4 savaitė","Viršvalandžiai   ","5 savaitė","Viršvalandžiai    "]
[null,"Pirmadienis"]
[null,"Antradienis"]
[null,"Trečiadienis"]
[null,"Ketvirtadienis"]
[null,"Penktadienis"]
[null,"Šeštadienis"]
[null,"Sekmadienis"]
[null,"Iš viso valandų per savaitę",{"$f":"SUBTOTAL(109,Kovas[1 savaitė])","v":0},{"$f":"SUBTOTAL(109,Kovas[Viršvalandžiai])","v":0},{"$f":"SUBTOTAL(109,Kovas[2 savaitė])","v":0},{"$f":"SUBTOTAL(109,Kovas[[Viršvalandžiai ]])","v":0},{"$f":"SUBTOTAL(109,Kovas[3 savaitė])","v":0},{"$f":"SUBTOTAL(109,Kovas[[Viršvalandžiai  ]])","v":0},{"$f":"SUBTOTAL(109,Kovas[4 savaitė])","v":0},{"$f":"SUBTOTAL(109,Kovas[[Viršvalandžiai   ]])","v":0},{"$f":"SUBTOTAL(109,Kovas[5 savaitė])","v":0},{"$f":"SUBTOTAL(109,Kovas[[Viršvalandžiai    ]])","v":0}]
[null,"Kov. bendras: Įprastos valandos",{"$f":"SUM(Kovas[[#Totals],[1 savaitė]],Kovas[[#Totals],[2 savaitė]],Kovas[[#Totals],[3 savaitė]],Kovas[[#Totals],[4 savaitė]],Kovas[[#Totals],[5 savaitė]])","v":0},"Kov. bendras: Viršvalandžiai",null,{"$f":"SUM(Kovas[[#Totals],[Viršvalandžiai]],Kovas[[#Totals],[Viršvalandžiai ]],Kovas[[#Totals],[Viršvalandžiai  ]],Kovas[[#Totals],[Viršvalandžiai   ]],Kovas[[#Totals],[Viršvalandžiai    ]])","v":0}]
[]
[null,"Balandis, gegužė, birželis      Darbuotojo tabelis: Per dieną, per savaitę, per mėnesį, per metus"]
[null,"Balandis","1 savaitė","Viršvalandžiai","2 savaitė","Viršvalandžiai ","3 savaitė","Viršvalandžiai  ","4 savaitė","Viršvalandžiai   ","5 savaitė","Viršvalandžiai    "]
[null,"Pirmadienis"]
[null,"Antradienis"]
[null,"Trečiadienis"]
[null,"Ketvirtadienis"]
[null,"Penktadienis"]
[null,"Šeštadienis"]
[null,"Sekmadienis"]
[null,"Iš viso valandų per savaitę",{"$f":"SUBTOTAL(109,Balandis[1 savaitė])","v":0},{"$f":"SUBTOTAL(109,Balandis[Viršvalandžiai])","v":0},{"$f":"SUBTOTAL(109,Balandis[2 savaitė])","v":0},{"$f":"SUBTOTAL(109,Balandis[[Viršvalandžiai ]])","v":0},{"$f":"SUBTOTAL(109,Balandis[3 savaitė])","v":0},{"$f":"SUBTOTAL(109,Balandis[[Viršvalandžiai  ]])","v":0},{"$f":"SUBTOTAL(109,Balandis[4 savaitė])","v":0},{"$f":"SUBTOTAL(109,Balandis[[Viršvalandžiai   ]])","v":0},{"$f":"SUBTOTAL(109,Balandis[5 savaitė])","v":0},{"$f":"SUBTOTAL(109,Balandis[[Viršvalandžiai    ]])","v":0}]
[null,"Bal. bendras: Įprastos valandos",{"$f":"SUM(Balandis[[#Totals],[1 savaitė]],Balandis[[#Totals],[2 savaitė]],Balandis[[#Totals],[3 savaitė]],Balandis[[#Totals],[4 savaitė]],Balandis[[#Totals],[5 savaitė]])","v":0},"Bal. bendras: Viršvalandžiai",null,{"$f":"SUM(Balandis[[#Totals],[Viršvalandžiai]],Balandis[[#Totals],[Viršvalandžiai ]],Balandis[[#Totals],[Viršvalandžiai  ]],Balandis[[#Totals],[Viršvalandžiai   ]],Balandis[[#Totals],[Viršvalandžiai    ]])","v":0}]
[]
[null,"Gegužė","1 savaitė","Viršvalandžiai","2 savaitė","Viršvalandžiai ","3 savaitė","Viršvalandžiai  ","4 savaitė","Viršvalandžiai   ","5 savaitė","Viršvalandžiai    "]
[null,"Pirmadienis"]
[null,"Antradienis"]
[null,"Trečiadienis"]
[null,"Ketvirtadienis"]
[null,"Penktadienis"]
[null,"Šeštadienis"]
[null,"Sekmadienis"]
[null,"Iš viso valandų per savaitę",{"$f":"SUBTOTAL(109,Gegužė[1 savaitė])","v":0},{"$f":"SUBTOTAL(109,Gegužė[Viršvalandžiai])","v":0},{"$f":"SUBTOTAL(109,Gegužė[2 savaitė])","v":0},{"$f":"SUBTOTAL(109,Gegužė[[Viršvalandžiai ]])","v":0},{"$f":"SUBTOTAL(109,Gegužė[3 savaitė])","v":0},{"$f":"SUBTOTAL(109,Gegužė[[Viršvalandžiai  ]])","v":0},{"$f":"SUBTOTAL(109,Gegužė[4 savaitė])","v":0},{"$f":"SUBTOTAL(109,Gegužė[[Viršvalandžiai   ]])","v":0},{"$f":"SUBTOTAL(109,Gegužė[5 savaitė])","v":0},{"$f":"SUBTOTAL(109,Gegužė[[Viršvalandžiai    ]])","v":0}]
[null,"Geg. bendras: Įprastos valandos",{"$f":"SUM(Gegužė[[#Totals],[1 savaitė]],Gegužė[[#Totals],[2 savaitė]],Gegužė[[#Totals],[3 savaitė]],Gegužė[[#Totals],[4 savaitė]],Gegužė[[#Totals],[5 savaitė]])","v":0},"Geg. bendras: Viršvalandžiai",null,{"$f":"SUM(Gegužė[[#Totals],[Viršvalandžiai]],Gegužė[[#Totals],[Viršvalandžiai ]],Gegužė[[#Totals],[Viršvalandžiai  ]],Gegužė[[#Totals],[Viršvalandžiai   ]],Gegužė[[#Totals],[Viršvalandžiai    ]])","v":0}]
[]
[null,"Birželis","1 savaitė","Viršvalandžiai","2 savaitė","Viršvalandžiai ","3 savaitė","Viršvalandžiai  ","4 savaitė","Viršvalandžiai   ","5 savaitė","Viršvalandžiai    "]
[null,"Pirmadienis"]
[null,"Antradienis"]
[null,"Trečiadienis"]
[null,"Ketvirtadienis"]
[null,"Penktadienis"]
[null,"Šeštadienis"]
[null,"Sekmadienis"]
[null,"Iš viso valandų per savaitę",{"$f":"SUBTOTAL(109,Birželis[1 savaitė])","v":0},{"$f":"SUBTOTAL(109,Birželis[Viršvalandžiai])","v":0},{"$f":"SUBTOTAL(109,Birželis[2 savaitė])","v":0},{"$f":"SUBTOTAL(109,Birželis[[Viršvalandžiai ]])","v":0},{"$f":"SUBTOTAL(109,Birželis[3 savaitė])","v":0},{"$f":"SUBTOTAL(109,Birželis[[Viršvalandžiai  ]])","v":0},{"$f":"SUBTOTAL(109,Birželis[4 savaitė])","v":0},{"$f":"SUBTOTAL(109,Birželis[[Viršvalandžiai   ]])","v":0},{"$f":"SUBTOTAL(109,Birželis[5 savaitė])","v":0},{"$f":"SUBTOTAL(109,Birželis[[Viršvalandžiai    ]])","v":0}]
[null,"Birž. bendras: Įprastos valandos",{"$f":"SUM(Birželis[[#Totals],[1 savaitė]],Birželis[[#Totals],[2 savaitė]],Birželis[[#Totals],[3 savaitė]],Birželis[[#Totals],[4 savaitė]],Birželis[[#Totals],[5 savaitė]])","v":0},"Birž. bendras: Viršvalandžiai",null,{"$f":"SUM(Birželis[[#Totals],[Viršvalandžiai]],Birželis[[#Totals],[Viršvalandžiai ]],Birželis[[#Totals],[Viršvalandžiai  ]],Birželis[[#Totals],[Viršvalandžiai   ]],Birželis[[#Totals],[Viršvalandžiai    ]])","v":0}]
[]
[null,"Liepa, rugpjūtis, rugsėjis      Darbuotojo tabelis: Per dieną, per savaitę, per mėnesį, per metus"]
[null,"Liepa","1 savaitė","Viršvalandžiai","2 savaitė","Viršvalandžiai ","3 savaitė","Viršvalandžiai  ","4 savaitė","Viršvalandžiai   ","5 savaitė","Viršvalandžiai    "]
[null,"Pirmadienis"]
[null,"Antradienis"]
[null,"Trečiadienis"]
[null,"Ketvirtadienis"]
[null,"Penktadienis"]
[null,"Šeštadienis"]
[null,"Sekmadienis"]
[null,"Iš viso valandų per savaitę",{"$f":"SUBTOTAL(109,Liepa[1 savaitė])","v":0},{"$f":"SUBTOTAL(109,Liepa[Viršvalandžiai])","v":0},{"$f":"SUBTOTAL(109,Liepa[2 savaitė])","v":0},{"$f":"SUBTOTAL(109,Liepa[[Viršvalandžiai ]])","v":0},{"$f":"SUBTOTAL(109,Liepa[3 savaitė])","v":0},{"$f":"SUBTOTAL(109,Liepa[[Viršvalandžiai  ]])","v":0},{"$f":"SUBTOTAL(109,Liepa[4 savaitė])","v":0},{"$f":"SUBTOTAL(109,Liepa[[Viršvalandžiai   ]])","v":0},{"$f":"SUBTOTAL(109,Liepa[5 savaitė])","v":0},{"$f":"SUBTOTAL(109,Liepa[[Viršvalandžiai    ]])","v":0}]
[null,"Lie. bendras: Įprastos valandos",{"$f":"SUM(Liepa[[#Totals],[1 savaitė]],Liepa[[#Totals],[2 savaitė]],Liepa[[#Totals],[3 savaitė]],Liepa[[#Totals],[4 savaitė]],Liepa[[#Totals],[5 savaitė]])","v":0},"Lie. bendras: Viršvalandžiai",null,{"$f":"SUM(Liepa[[#Totals],[Viršvalandžiai]],Liepa[[#Totals],[Viršvalandžiai ]],Liepa[[#Totals],[Viršvalandžiai  ]],Liepa[[#Totals],[Viršvalandžiai   ]],Liepa[[#Totals],[Viršvalandžiai    ]])","v":0}]
[]
[null,"Rugpjūtis","1 savaitė","Viršvalandžiai","2 savaitė","Viršvalandžiai ","3 savaitė","Viršvalandžiai  ","4 savaitė","Viršvalandžiai   ","5 savaitė","Viršvalandžiai    "]
[null,"Pirmadienis"]
[null,"Antradienis"]
[null,"Trečiadienis"]
[null,"Ketvirtadienis"]
[null,"Penktadienis"]
[null,"Šeštadienis"]
[null,"Sekmadienis"]
[null,"Iš viso valandų per savaitę",{"$f":"SUBTOTAL(109,Rugpjūtis[1 savaitė])","v":0},{"$f":"SUBTOTAL(109,Rugpjūtis[Viršvalandžiai])","v":0},{"$f":"SUBTOTAL(109,Rugpjūtis[2 savaitė])","v":0},{"$f":"SUBTOTAL(109,Rugpjūtis[[Viršvalandžiai ]])","v":0},{"$f":"SUBTOTAL(109,Rugpjūtis[3 savaitė])","v":0},{"$f":"SUBTOTAL(109,Rugpjūtis[[Viršvalandžiai  ]])","v":0},{"$f":"SUBTOTAL(109,Rugpjūtis[4 savaitė])","v":0},{"$f":"SUBTOTAL(109,Rugpjūtis[[Viršvalandžiai   ]])","v":0},{"$f":"SUBTOTAL(109,Rugpjūtis[5 savaitė])","v":0},{"$f":"SUBTOTAL(109,Rugpjūtis[[Viršvalandžiai    ]])","v":0}]
[null,"Rgp. bendras: Įprastos valandos",{"$f":"SUM(Rugpjūtis[[#Totals],[1 savaitė]],Rugpjūtis[[#Totals],[2 savaitė]],Rugpjūtis[[#Totals],[3 savaitė]],Rugpjūtis[[#Totals],[4 savaitė]],Rugpjūtis[[#Totals],[5 savaitė]])","v":0},"Rgp. bendras: Viršvalandžiai",null,{"$f":"SUM(Rugpjūtis[[#Totals],[Viršvalandžiai]],Rugpjūtis[[#Totals],[Viršvalandžiai ]],Rugpjūtis[[#Totals],[Viršvalandžiai  ]],Rugpjūtis[[#Totals],[Viršvalandžiai   ]],Rugpjūtis[[#Totals],[Viršvalandžiai    ]])","v":0}]
[]
[null,"Rugsėjis","1 savaitė","Viršvalandžiai","2 savaitė","Viršvalandžiai ","3 savaitė","Viršvalandžiai  ","4 savaitė","Viršvalandžiai   ","5 savaitė","Viršvalandžiai    "]
[null,"Pirmadienis"]
[null,"Antradienis"]
[null,"Trečiadienis"]
[null,"Ketvirtadienis"]
[null,"Penktadienis"]
[null,"Šeštadienis"]
[null,"Sekmadienis"]
[null,"Iš viso valandų per savaitę",{"$f":"SUBTOTAL(109,Rugsėjis[1 savaitė])","v":0},{"$f":"SUBTOTAL(109,Rugsėjis[Viršvalandžiai])","v":0},{"$f":"SUBTOTAL(109,Rugsėjis[2 savaitė])","v":0},{"$f":"SUBTOTAL(109,Rugsėjis[[Viršvalandžiai ]])","v":0},{"$f":"SUBTOTAL(109,Rugsėjis[3 savaitė])","v":0},{"$f":"SUBTOTAL(109,Rugsėjis[[Viršvalandžiai  ]])","v":0},{"$f":"SUBTOTAL(109,Rugsėjis[4 savaitė])","v":0},{"$f":"SUBTOTAL(109,Rugsėjis[[Viršvalandžiai   ]])","v":0},{"$f":"SUBTOTAL(109,Rugsėjis[5 savaitė])","v":0},{"$f":"SUBTOTAL(109,Rugsėjis[[Viršvalandžiai    ]])","v":0}]
[null,"Rgs. bendras: Įprastos valandos",{"$f":"SUM(Rugsėjis[[#Totals],[1 savaitė]],Rugsėjis[[#Totals],[2 savaitė]],Rugsėjis[[#Totals],[3 savaitė]],Rugsėjis[[#Totals],[4 savaitė]],Rugsėjis[[#Totals],[5 savaitė]])","v":0},"Rgs. bendras: Viršvalandžiai",null,{"$f":"SUM(Rugsėjis[[#Totals],[Viršvalandžiai]],Rugsėjis[[#Totals],[Viršvalandžiai ]],Rugsėjis[[#Totals],[Viršvalandžiai  ]],Rugsėjis[[#Totals],[Viršvalandžiai   ]],Rugsėjis[[#Totals],[Viršvalandžiai    ]])","v":0}]
[]
[null,"Spalis, lapkritis, gruodis      Darbuotojo tabelis: Per dieną, per savaitę, per mėnesį, per metus"]
[null,"Spalis","1 savaitė","Viršvalandžiai","2 savaitė","Viršvalandžiai ","3 savaitė","Viršvalandžiai  ","4 savaitė","Viršvalandžiai   ","5 savaitė","Viršvalandžiai    "]
[null,"Pirmadienis"]
[null,"Antradienis"]
[null,"Trečiadienis"]
[null,"Ketvirtadienis"]
[null,"Penktadienis"]
[null,"Šeštadienis"]
[null,"Sekmadienis"]
[null,"Iš viso valandų per savaitę",{"$f":"SUBTOTAL(109,Spalis[1 savaitė])","v":0},{"$f":"SUBTOTAL(109,Spalis[Viršvalandžiai])","v":0},{"$f":"SUBTOTAL(109,Spalis[2 savaitė])","v":0},{"$f":"SUBTOTAL(109,Spalis[[Viršvalandžiai ]])","v":0},{"$f":"SUBTOTAL(109,Spalis[3 savaitė])","v":0},{"$f":"SUBTOTAL(109,Spalis[[Viršvalandžiai  ]])","v":0},{"$f":"SUBTOTAL(109,Spalis[4 savaitė])","v":0},{"$f":"SUBTOTAL(109,Spalis[[Viršvalandžiai   ]])","v":0},{"$f":"SUBTOTAL(109,Spalis[5 savaitė])","v":0},{"$f":"SUBTOTAL(109,Spalis[[Viršvalandžiai    ]])","v":0}]
[null,"Rgs. bendras: Įprastos valandos",{"$f":"SUM(Spalis[[#Totals],[1 savaitė]],Spalis[[#Totals],[2 savaitė]],Spalis[[#Totals],[3 savaitė]],Spalis[[#Totals],[4 savaitė]],Spalis[[#Totals],[5 savaitė]])","v":0},"Rgs. bendras: Viršvalandžiai",null,{"$f":"SUM(Spalis[[#Totals],[Viršvalandžiai]],Spalis[[#Totals],[Viršvalandžiai ]],Spalis[[#Totals],[Viršvalandžiai  ]],Spalis[[#Totals],[Viršvalandžiai   ]],Spalis[[#Totals],[Viršvalandžiai    ]])","v":0}]
[]
[null,"Lapkritis","1 savaitė","Viršvalandžiai","2 savaitė","Viršvalandžiai ","3 savaitė","Viršvalandžiai  ","4 savaitė","Viršvalandžiai   ","5 savaitė","Viršvalandžiai    "]
[null,"Pirmadienis"]
[null,"Antradienis"]
[null,"Trečiadienis"]
[null,"Ketvirtadienis"]
[null,"Penktadienis"]
[null,"Šeštadienis"]
[null,"Sekmadienis"]
[null,"Iš viso valandų per savaitę",{"$f":"SUBTOTAL(109,Lapkritis[1 savaitė])","v":0},{"$f":"SUBTOTAL(109,Lapkritis[Viršvalandžiai])","v":0},{"$f":"SUBTOTAL(109,Lapkritis[2 savaitė])","v":0},{"$f":"SUBTOTAL(109,Lapkritis[[Viršvalandžiai ]])","v":0},{"$f":"SUBTOTAL(109,Lapkritis[3 savaitė])","v":0},{"$f":"SUBTOTAL(109,Lapkritis[[Viršvalandžiai  ]])","v":0},{"$f":"SUBTOTAL(109,Lapkritis[4 savaitė])","v":0},{"$f":"SUBTOTAL(109,Lapkritis[[Viršvalandžiai   ]])","v":0},{"$f":"SUBTOTAL(109,Lapkritis[5 savaitė])","v":0},{"$f":"SUBTOTAL(109,Lapkritis[[Viršvalandžiai    ]])","v":0}]
[null,"Lpk. bendras: Įprastos valandos",{"$f":"SUM(Lapkritis[[#Totals],[1 savaitė]],Lapkritis[[#Totals],[2 savaitė]],Lapkritis[[#Totals],[3 savaitė]],Lapkritis[[#Totals],[4 savaitė]],Lapkritis[[#Totals],[5 savaitė]])","v":0},"Lpk. bendras: Viršvalandžiai",null,{"$f":"SUM(Lapkritis[[#Totals],[Viršvalandžiai]],Lapkritis[[#Totals],[Viršvalandžiai ]],Lapkritis[[#Totals],[Viršvalandžiai  ]],Lapkritis[[#Totals],[Viršvalandžiai   ]],Lapkritis[[#Totals],[Viršvalandžiai    ]])","v":0}]
[]
[null,"Gruodis","1 savaitė","Viršvalandžiai","2 savaitė","Viršvalandžiai ","3 savaitė","Viršvalandžiai  ","4 savaitė","Viršvalandžiai   ","5 savaitė","Viršvalandžiai    "]
[null,"Pirmadienis"]
[null,"Antradienis"]
[null,"Trečiadienis"]
[null,"Ketvirtadienis"]
[null,"Penktadienis"]
[null,"Šeštadienis"]
[null,"Sekmadienis"]
[null,"Iš viso valandų per savaitę",{"$f":"SUBTOTAL(109,Gruodis[1 savaitė])","v":0},{"$f":"SUBTOTAL(109,Gruodis[Viršvalandžiai])","v":0},{"$f":"SUBTOTAL(105,Gruodis[2 savaitė])","v":0},{"$f":"SUBTOTAL(109,Gruodis[[Viršvalandžiai ]])","v":0},{"$f":"SUBTOTAL(109,Gruodis[3 savaitė])","v":0},{"$f":"SUBTOTAL(109,Gruodis[[Viršvalandžiai  ]])","v":0},{"$f":"SUBTOTAL(109,Gruodis[4 savaitė])","v":0},{"$f":"SUBTOTAL(109,Gruodis[[Viršvalandžiai   ]])","v":0},{"$f":"SUBTOTAL(109,Gruodis[5 savaitė])","v":0},{"$f":"SUBTOTAL(109,Gruodis[[Viršvalandžiai    ]])","v":0}]
[null,"Grd. bendras: Įprastos valandos",{"$f":"SUM(Gruodis[[#Totals],[1 savaitė]],Gruodis[[#Totals],[2 savaitė]],Gruodis[[#Totals],[3 savaitė]],Gruodis[[#Totals],[4 savaitė]],Gruodis[[#Totals],[5 savaitė]])","v":0},"Grd. bendras: Viršvalandžiai",null,{"$f":"SUM(Gruodis[[#Totals],[Viršvalandžiai]],Gruodis[[#Totals],[Viršvalandžiai ]],Gruodis[[#Totals],[Viršvalandžiai  ]],Gruodis[[#Totals],[Viršvalandžiai   ]],Gruodis[[#Totals],[Viršvalandžiai    ]])","v":0}]